Workbook

Sheet تقرير تفصيلى
E2: العدد | F2: الصنف | G2: اسم المقاول | H2: التاريخ | I2: التاريخ
H3: =">="&E6 -> >=45173 | I3: ="<="&F6 -> <=46004
E5: من تاريخ | F5: الى تاريخ
E6: 2023-09-04 | F6: 2025-12-13 | I6: تقرير تفصيلى للمقاولين2025
E9: العدد | F9: التاريخ | G9: الصنف | H9: اسم المقاول | I9: القائم | J9: الفارغ | K9: الصافى | L9: السعر | M9: القيمة

Sheet toutal
I1: الاجمالى الكلى للإنتاج | P1: اليوم | Q1: التاريخ | T1: اجمالى الوزن والمستحق والمتبقى | W1: اليوم | X1: التاريخ
P2: =+Q2 -> 2025-02-14 | Q2: =TODAY() -> 2025-02-14 | W2: =+X2 -> 2025-02-14 | X2: =TODAY() -> 2025-02-14
B3: =+A4 -> الاسم | D3: فستفال | I3: صن سشيال | N3: فرتونا | R3: =+B3 -> الاسم | S3: الاجمالى الكلى | W3: الواصل | X3: الباقى
A4: الاسم | D4: العدد | E4: الصافى | F4: السعر | G4: القيمة | I4: العدد | J4: الصافى | K4: السعر | L4: القيمة | N4: العدد | O4: الصافى | P4: السعر | Q4: القيمة | S4: العدد | T4: الصافى | U4: السعر | V4: القيمة
A5: تقرير تفصيلى
A6: يومية المقاولين
A7: المزرعة | B7: =+A7 -> المزرعة | D7: =SUMIFS('يومية المقاولين'!$F$7:$F$16000,'يومية المقاولين'!$G$7:$G$16000,$D$3,'يومية المقاولين'!$H$7:$H$16000,$A7) -> 15481 | E7: =SUMIFS('يومية المقاولين'!$K$7:$K$16000,'يومية المقاولين'!$G$7:$G$16000,$D$3,'يومية المقاولين'!$H$7:$H$16000,$A7) -> 71040.75 | F7: =+G7/E7 -> 31.34443963 | G7: =SUMIFS('يومية المقاولين'!$M$7:$M$16000,'يومية المقاولين'!$G$7:$G$16000,$D$3,'يومية المقاولين'!$H$7:$H$16000,$A7) -> 2226732.5 | I7: =SUMIFS('يومية المقاولين'!$F$7:$F$16000,'يومية المقاولين'!$G$7:$G$16000,$I$3,'يومية المقاولين'!$H$7:$H$16000,$A7) -> 0 | J7: =SUMIFS('يومية المقاولين'!$K$7:$K$16000,'يومية المقاولين'!$G$7:$G$16000,$I$3,'يومية المقاولين'!$H$7:$H$16000,$A7) -> 0 | K7: =+L7/J7 ->  | L7: =SUMIFS('يومية المقاولين'!$M$7:$M$16000,'يومية المقاولين'!$G$7:$G$16000,$I$3,'يومية المقاولين'!$H$7:$H$16000,$A7) -> 0 | N7: =SUMIFS('يومية المقاولين'!$F$7:$F$16000,'يومية المقاولين'!$G$7:$G$16000,$N$3,'يومية المقاولين'!$H$7:$H$16000,$A7) -> 0 | O7: =SUMIFS('يومية المقاولين'!$K$7:$K$16000,'يومية المقاولين'!$G$7:$G$16000,$N$3,'يومية المقاولين'!$H$7:$H$16000,$A7) -> 0 | P7: =+Q7/O7 ->  | Q7: =SUMIFS('يومية المقاولين'!$M$7:$M$16000,'يومية المقاولين'!$G$7:$G$16000,$N$3,'يومية المقاولين'!$H$7:$H$16000,$A7) -> 0 | R7: =+B7 -> المزرعة | S7: =+N7+I7+D7 -> 15481 | T7: =+O7+J7+E7 -> 71040.75 | U7: =+V7/T7 -> 31.34443963 | V7: =+Q7+L7+G7 -> 2226732.5 | W7: =SUMIFS('يومية المقاولين'!$N$7:$N$17000,'يومية المقاولين'!$H$7:$H$17000,$B7) -> 0 | X7: =+V7-W7 -> 2226732.5
A8: محمد شوقى | B8: =+A8 -> محمد شوقى | D8: =SUMIFS('يومية المقاولين'!$F$7:$F$16000,'يومية المقاولين'!$G$7:$G$16000,$D$3,'يومية المقاولين'!$H$7:$H$16000,$A8) -> 1417 | E8: =SUMIFS('يومية المقاولين'!$K$7:$K$16000,'يومية المقاولين'!$G$7:$G$16000,$D$3,'يومية المقاولين'!$H$7:$H$16000,$A8) -> 8469 | F8: =+G8/E8 -> 31.62657929 | G8: =SUMIFS('يومية المقاولين'!$M$7:$M$16000,'يومية المقاولين'!$G$7:$G$16000,$D$3,'يومية المقاولين'!$H$7:$H$16000,$A8) -> 267845.5 | I8: =SUMIFS('يومية المقاولين'!$F$7:$F$16000,'يومية المقاولين'!$G$7:$G$16000,$I$3,'يومية المقاولين'!$H$7:$H$16000,$A8) -> 790 | J8: =SUMIFS('يومية المقاولين'!$K$7:$K$16000,'يومية المقاولين'!$G$7:$G$16000,$I$3,'يومية المقاولين'!$H$7:$H$16000,$A8) -> 4553.25 | K8: =+L8/J8 -> 21.77664306 | L8: =SUMIFS('يومية المقاولين'!$M$7:$M$16000,'يومية المقاولين'!$G$7:$G$16000,$I$3,'يومية المقاولين'!$H$7:$H$16000,$A8) -> 99154.5 | N8: =SUMIFS('يومية المقاولين'!$F$7:$F$16000,'يومية المقاولين'!$G$7:$G$16000,$N$3,'يومية المقاولين'!$H$7:$H$16000,$A8) -> 1594 | O8: =SUMIFS('يومية المقاولين'!$K$7:$K$16000,'يومية المقاولين'!$G$7:$G$16000,$N$3,'يومية المقاولين'!$H$7:$H$16000,$A8) -> 8512.5 | P8: =+Q8/O8 -> 29.00017621 | Q8: =SUMIFS('يومية المقاولين'!$M$7:$M$16000,'يومية المقاولين'!$G$7:$G$16000,$N$3,'يومية المقاولين'!$H$7:$H$16000,$A8) -> 246864 | R8: =+B8 -> محمد شوقى | S8: =+N8+I8+D8 -> 3801 | T8: =+O8+J8+E8 -> 21534.75 | U8: =+V8/T8 -> 28.50574072 | V8: =+Q8+L8+G8 -> 613864 | W8: =SUMIFS('يومية المقاولين'!$N$7:$N$17000,'يومية المقاولين'!$H$7:$H$17000,$B8) -> 0 | X8: =+V8-W8 -> 613864
A9: عبد الرحمن | B9: عبد الرحمن | D9: =SUMIFS('يومية المقاولين'!$F$7:$F$16000,'يومية المقاولين'!$G$7:$G$16000,$D$3,'يومية المقاولين'!$H$7:$H$16000,$A9) -> 246 | E9: =SUMIFS('يومية المقاولين'!$K$7:$K$16000,'يومية المقاولين'!$G$7:$G$16000,$D$3,'يومية المقاولين'!$H$7:$H$16000,$A9) -> 1301.5 | F9: 31.33269305 | G9: =SUMIFS('يومية المقاولين'!$M$7:$M$16000,'يومية المقاولين'!$G$7:$G$16000,$D$3,'يومية المقاولين'!$H$7:$H$16000,$A9) -> 40779.5 | I9: =SUMIFS('يومية المقاولين'!$F$7:$F$16000,'يومية المقاولين'!$G$7:$G$16000,$I$3,'يومية المقاولين'!$H$7:$H$16000,$A9) -> 89 | J9: =SUMIFS('يومية المقاولين'!$K$7:$K$16000,'يومية المقاولين'!$G$7:$G$16000,$I$3,'يومية المقاولين'!$H$7:$H$16000,$A9) -> 558 | K9: 21.98387097 | L9: =SUMIFS('يومية المقاولين'!$M$7:$M$16000,'يومية المقاولين'!$G$7:$G$16000,$I$3,'يومية المقاولين'!$H$7:$H$16000,$A9) -> 12267 | N9: =SUMIFS('يومية المقاولين'!$F$7:$F$16000,'يومية المقاولين'!$G$7:$G$16000,$N$3,'يومية المقاولين'!$H$7:$H$16000,$A9) -> 803 | O9: =SUMIFS('يومية المقاولين'!$K$7:$K$16000,'يومية المقاولين'!$G$7:$G$16000,$N$3,'يومية المقاولين'!$H$7:$H$16000,$A9) -> 4479 | P9: 29.57680286 | Q9: =SUMIFS('يومية المقاولين'!$M$7:$M$16000,'يومية المقاولين'!$G$7:$G$16000,$N$3,'يومية المقاولين'!$H$7:$H$16000,$A9) -> 132474.5 | R9: عبد الرحمن | S9: 1138 | T9: 6338.5 | U9: 29.2689122 | V9: 185521 | W9: =SUMIFS('يومية المقاولين'!$N$7:$N$17000,'يومية المقاولين'!$H$7:$H$17000,$B9) -> 120000 | X9: 65521
A10: رضا جادو | B10: رضا جادو | D10: =SUMIFS('يومية المقاولين'!$F$7:$F$16000,'يومية المقاولين'!$G$7:$G$16000,$D$3,'يومية المقاولين'!$H$7:$H$16000,$A10) -> 184 | E10: =SUMIFS('يومية المقاولين'!$K$7:$K$16000,'يومية المقاولين'!$G$7:$G$16000,$D$3,'يومية المقاولين'!$H$7:$H$16000,$A10) -> 1001 | F10: 31.33566434 | G10: =SUMIFS('يومية المقاولين'!$M$7:$M$16000,'يومية المقاولين'!$G$7:$G$16000,$D$3,'يومية المقاولين'!$H$7:$H$16000,$A10) -> 31367 | I10: =SUMIFS('يومية المقاولين'!$F$7:$F$16000,'يومية المقاولين'!$G$7:$G$16000,$I$3,'يومية المقاولين'!$H$7:$H$16000,$A10) -> 167 | J10: =SUMIFS('يومية المقاولين'!$K$7:$K$16000,'يومية المقاولين'!$G$7:$G$16000,$I$3,'يومية المقاولين'!$H$7:$H$16000,$A10) -> 1068.25 | K10: 22.03955067 | L10: =SUMIFS('يومية المقاولين'!$M$7:$M$16000,'يومية المقاولين'!$G$7:$G$16000,$I$3,'يومية المقاولين'!$H$7:$H$16000,$A10) -> 23543.75 | N10: =SUMIFS('يومية المقاولين'!$F$7:$F$16000,'يومية المقاولين'!$G$7:$G$16000,$N$3,'يومية المقاولين'!$H$7:$H$16000,$A10) -> 415 | O10: =SUMIFS('يومية المقاولين'!$K$7:$K$16000,'يومية المقاولين'!$G$7:$G$16000,$N$3,'يومية المقاولين'!$H$7:$H$16000,$A10) -> 2359.5 | P10: 29.2301335 | Q10: =SUMIFS('يومية المقاولين'!$M$7:$M$16000,'يومية المقاولين'!$G$7:$G$16000,$N$3,'يومية المقاولين'!$H$7:$H$16000,$A10) -> 68968.5 | R10: رضا جادو | S10: 766 | T10: 4428.75 | U10: 27.97160598 | V10: 123879.25 | W10: =SUMIFS('يومية المقاولين'!$N$7:$N$17000,'يومية المقاولين'!$H$7:$H$17000,$B10) -> 0 | X10: 123879.25
A11: على خميس | B11: على خميس | D11: =SUMIFS('يومية المقاولين'!$F$7:$F$16000,'يومية المقاولين'!$G$7:$G$16000,$D$3,'يومية المقاولين'!$H$7:$H$16000,$A11) -> 56 | E11: =SUMIFS('يومية المقاولين'!$K$7:$K$16000,'يومية المقاولين'!$G$7:$G$16000,$D$3,'يومية المقاولين'!$H$7:$H$16000,$A11) -> 504 | F11: 30 | G11: =SUMIFS('يومية المقاولين'!$M$7:$M$16000,'يومية المقاولين'!$G$7:$G$16000,$D$3,'يومية المقاولين'!$H$7:$H$16000,$A11) -> 15120 | I11: =SUMIFS('يومية المقاولين'!$F$7:$F$16000,'يومية المقاولين'!$G$7:$G$16000,$I$3,'يومية المقاولين'!$H$7:$H$16000,$A11) -> 118 | J11: =SUMIFS('يومية المقاولين'!$K$7:$K$16000,'يومية المقاولين'!$G$7:$G$16000,$I$3,'يومية المقاولين'!$H$7:$H$16000,$A11) -> 733.5 | K11: 23 | L11: =SUMIFS('يومية المقاولين'!$M$7:$M$16000,'يومية المقاولين'!$G$7:$G$16000,$I$3,'يومية المقاولين'!$H$7:$H$16000,$A11) -> 16870.5 | N11: =SUMIFS('يومية المقاولين'!$F$7:$F$16000,'يومية المقاولين'!$G$7:$G$16000,$N$3,'يومية المقاولين'!$H$7:$H$16000,$A11) -> 155 | O11: =SUMIFS('يومية المقاولين'!$K$7:$K$16000,'يومية المقاولين'!$G$7:$G$16000,$N$3,'يومية المقاولين'!$H$7:$H$16000,$A11) -> 992.75 | P11: 29.60110803 | Q11: =SUMIFS('يومية المقاولين'!$M$7:$M$16000,'يومية المقاولين'!$G$7:$G$16000,$N$3,'يومية المقاولين'!$H$7:$H$16000,$A11) -> 29386.5 | R11: على خميس | S11: 329 | T11: 2230.25 | U11: 27.52023316 | V11: 61377 | W11: =SUMIFS('يومية المقاولين'!$N$7:$N$17000,'يومية المقاولين'!$H$7:$H$17000,$B11) -> 50000 | X11: 11377
B12: الاجمالى الكلى | D12: =SUM(D7:D11) -> 17384 | E12: =SUM(E7:E11) -> 82316.25 | F12: 31.36494313 | G12: 2581844.5 | I12: =SUM(I7:I11) -> 1164 | J12: =SUM(J7:J11) -> 6913 | K12: 21.96380009 | L12: =SUM(L7:L11) -> 151835.75 | N12: =SUM(N7:N11) -> 2967 | O12: =SUM(O7:O11) -> 16343.75 | P12: 29.22790057 | Q12: =SUM(Q7:Q11) -> 477693.5 | R12: =+B12 -> الاجمالى الكلى | S12: =SUM(S7:S11) -> 21515 | T12: =SUM(T7:T11) -> 105573 | U12: 30.41851373 | V12: =SUM(V7:V11) -> 3211373.75 | W12: 170000 | X12: 3041373.75
B19: 0
B20: 0
B21: 0
B22: 0
B23: 0
B24: 0
B25: 0
B26: 0
B27: 0
B28: 0
B29: 0
B30: 0
B31: 0
B32: 0
B33: 0
B34: 0
B35: 0
B36: 0
B37: 0
B38: 0
B39: 0
B40: 0
B41: 0
B42: 0
B43: 0
B44: 0
B45: 0
B46: 0
B47: 0
B48: 0
B49: 0
B50: 0
B51: 0
B52: 0
B53: 0
B54: 0
B55: 0
B56: 0
B57: 0
B58: 0
B59: 0
B60: 0
B61: 0
B62: 0
B63: 0
B64: 0
B65: 0
B66: 0
B67: 0
B68: 0
B69: 0
B70: 0
B71: 0
B72: =+A72 -> 0
B73: 0
B74: 0
B75: 0
B76: 0
B77: 0
B78: 0
B79: 0
B80: 0
B81: 0
B82: 0
B83: 0
B84: 0
B85: 0
B86: 0
B87: 0
B88: 0
B89: 0
B90: 0
B91: 0
B92: 0
B93: 0
B94: 0
B95: 0
B96: 0
B97: 0
B98: 0
B99: 0
B100: 0
B101: 0
B102: 0
B103: 0
B104: 0
B105: 0
B106: 0
B107: 0
B108: 0
B109: 0
B110: 0
B111: 0
B112: 0
B113: 0
B114: 0
B115: 0
B116: 0
B117: 0
B118: 0
B119: 0
B120: 0
B121: 0
B122: 0
B123: 0
B124: 0
B125: 0
B126: 0
B127: 0
B128: 0
B129: 0
B130: 0
B131: 0
B132: 0
B133: 0
B134: 0
B135: 0
B136: =+A136 -> 0
B137: 0
B138: 0
B139: 0
B140: 0
B141: 0
B142: 0
B143: 0
B144: 0
B145: 0
B146: 0
B147: 0
B148: 0
B149: 0
B150: 0
B151: 0
B152: 0
B153: 0
B154: 0
B155: 0
B156: 0
B157: 0
B158: 0
B159: 0
B160: 0
B161: 0
B162: 0
B163: 0
B164: 0
B165: 0
B166: 0
B167: 0
B168: 0
B169: 0
B170: 0
B171: 0
B172: 0
B173: 0
B174: 0
B175: 0
B176: 0
B177: 0
B178: 0
B179: 0
B180: 0
B181: 0
B182: 0
B183: 0
B184: 0
B185: 0
B186: 0
B187: 0
B188: 0
B189: 0
B190: 0
B191: 0
B192: 0
B193: 0
B194: 0
B195: 0
B196: 0
B197: 0
B198: 0
B199: 0
B200: =+A200 -> 0
B201: 0
B202: 0
B203: 0
B204: 0
B205: 0
B206: 0
... 262 more rows

Sheet يومية المقاولين
F1: =SUBTOTAL(9,F7:F130000) -> 21515 | G1: 0 | H1: 0 | I1: 121767 | J1: 16194 | K1: 105573 | L1: =+M1/K1 -> 30.41851373 | M1: =SUBTOTAL(9,M7:M130000) -> 3211373.75 | N1: =SUBTOTAL(9,N7:N130000) -> 170000
E3: بيان يومى تفصيلى بيومية المفرش والمزرعة 2025
H4: الاجمالى الكلى
E6: التاريخ | F6: العدد | G6: الصنف | H6: اسم المقاول | I6: القائم | J6: الفارغ | K6: الصافى | L6: السعر | M6: القيمة | N6: الواصل
E7: 2025-02-02 | F7: 648 | G7: فستفال | H7: المزرعة | I7: 3560 | J7: 486 | K7: 3074 | L7: 32 | M7: 98368
E8: 2025-02-02 | F8: 191 | G8: فستفال | H8: المزرعة | I8: 1039 | J8: 143.25 | K8: 895.75 | L8: 32 | M8: 28664
E9: 2025-02-02 | F9: 289 | G9: فستفال | H9: محمد شوقى | I9: 1775 | J9: 216.75 | K9: 1558.25 | L9: 32 | M9: 49864
E10: 2025-02-02 | F10: 27 | G10: صن سشيال | H10: عبد الرحمن | I10: 166 | J10: 20.25 | K10: 145.75 | L10: 23 | M10: 3352.25
E11: 2025-02-02 | F11: 16 | G11: فرتونا | H11: عبد الرحمن | I11: 99 | J11: 12 | K11: 87 | L11: 30 | M11: 2610
E12: 2025-02-02 | F12: 56 | G12: صن سشيال | H12: رضا جادو | I12: 348 | J12: 42 | K12: 306 | L12: 23 | M12: 7038
E13: 2025-02-02 | F13: 15 | G13: فرتونا | H13: رضا جادو | I13: 87 | J13: 11.25 | K13: 75.75 | L13: 30 | M13: 2272.5
E14: 2025-02-02 | F14: 330 | G14: فستفال | H14: المزرعة | I14: 1765 | J14: 247.5 | K14: 1517.5 | L14: 32 | M14: 48560
E15: 2025-02-02 | F15: 767 | G15: فستفال | H15: المزرعة | I15: 4050 | J15: 575.25 | K15: 3474.75 | L15: 32 | M15: 111192
E16: 2025-02-02 | F16: 235 | G16: فستفال | H16: المزرعة | I16: 1245 | J16: 176.25 | K16: 1068.75 | L16: 32 | M16: 34200
E17: 2025-02-02 | F17: 86 | G17: فستفال | H17: عبد الرحمن | I17: 517 | J17: 64.5 | K17: 452.5 | L17: 32 | M17: 14480
E18: 2025-02-02 | F18: 22 | G18: فرتونا | H18: رضا جادو | I18: 135 | J18: 16.5 | K18: 118.5 | L18: 30 | M18: 3555
E19: 2025-02-02 | F19: 63 | G19: فستفال | H19: رضا جادو | I19: 383 | J19: 47.25 | K19: 335.75 | L19: 32 | M19: 10744
E20: 2025-02-02 | F20: 232 | G20: صن سشيال | H20: محمد شوقى | I20: 1432 | J20: 174 | K20: 1258 | L20: 23 | M20: 28934
E21: 2025-02-03 | F21: 330 | G21: فستفال | H21: المزرعة | I21: 1795 | J21: 247.5 | K21: 1547.5 | L21: 32 | M21: 49520
E22: 2025-02-03 | F22: 525 | G22: فستفال | H22: المزرعة | I22: 2925 | J22: 393.75 | K22: 2531.25 | L22: 32 | M22: 81000
E23: 2025-02-03 | F23: 339 | G23: فستفال | H23: المزرعة | I23: 1880 | J23: 254.25 | K23: 1625.75 | L23: 32 | M23: 52024
E24: 2025-02-03 | F24: 398 | G24: فرتونا | H24: محمد شوقى | I24: 2354 | J24: 298.5 | K24: 2055.5 | L24: 30 | M24: 61665
E25: 2025-02-03 | F25: 104 | G25: فرتونا | H25: عبد الرحمن | I25: 638 | J25: 78 | K25: 560 | L25: 30 | M25: 16800
E26: 2025-02-03 | F26: 84 | G26: فرتونا | H26: رضا جادو | I26: 523 | J26: 63 | K26: 460 | L26: 30 | M26: 13800
E27: 2025-02-04 | F27: 330 | G27: فستفال | H27: المزرعة | I27: 1820 | J27: 247.5 | K27: 1572.5 | L27: 32 | M27: 50320
E28: 2025-02-04 | F28: 756 | G28: فستفال | H28: المزرعة | I28: 4280 | J28: 567 | K28: 3713 | L28: 32 | M28: 118816
E29: 2025-02-04 | F29: 268 | G29: فستفال | H29: المزرعة | I29: 1520 | J29: 201 | K29: 1319 | L29: 32 | M29: 42208
E30: 2025-02-04 | F30: 262 | G30: فرتونا | H30: عبد الرحمن | I30: 1629 | J30: 196.5 | K30: 1432.5 | L30: 30 | M30: 42975
E31: 2025-02-04 | F31: 266 | G31: فستفال | H31: محمد شوقى | I31: 1618 | J31: 199.5 | K31: 1418.5 | L31: 32 | M31: 45392
E32: 2025-02-05 | F32: 330 | G32: فستفال | H32: المزرعة | I32: 1815 | J32: 247.5 | K32: 1567.5 | L32: 32 | M32: 50160
E33: 2025-02-05 | F33: 864 | G33: فستفال | H33: المزرعة | I33: 4665 | J33: 648 | K33: 4017 | L33: 32 | M33: 128544
E34: 2025-02-05 | F34: 427 | G34: فستفال | H34: المزرعة | I34: 2185 | J34: 320.25 | K34: 1864.75 | L34: 32 | M34: 59672
E35: 2025-02-05 | F35: 79 | G35: فستفال | H35: عبد الرحمن | I35: 474 | J35: 59.25 | K35: 414.75 | L35: 32 | M35: 13272
E36: 2025-02-05 | F36: 262 | G36: صن سشيال | H36: محمد شوقى | I36: 1635 | J36: 196.5 | K36: 1438.5 | L36: 23 | M36: 33085.5
E37: 2025-02-05 | F37: 25 | G37: فرتونا | H37: رضا جادو | I37: 159 | J37: 18.75 | K37: 140.25 | L37: 30 | M37: 4207.5
E38: 2025-02-05 | F38: 59 | G38: فستفال | H38: رضا جادو | I38: 377 | J38: 44.25 | K38: 332.75 | L38: 32 | M38: 10648
E39: 2025-02-06 | F39: 330 | G39: فستفال | H39: المزرعة | I39: 1815 | J39: 247.5 | K39: 1567.5 | L39: 32 | M39: 50160
E40: 2025-02-06 | F40: 733 | G40: فستفال | H40: المزرعة | I40: 3000 | J40: 549.75 | K40: 2450.25 | L40: 32 | M40: 78408
E41: 2025-02-06 | F41: 73 | G41: صن سشيال | H41: رضا جادو | I41: 475 | J41: 54.75 | K41: 420.25 | L41: 23 | M41: 9665.75
E42: 2025-02-06 | F42: 19 | G42: فرتونا | H42: رضا جادو | I42: 119 | J42: 14.25 | K42: 104.75 | L42: 30 | M42: 3142.5
E43: 2025-02-06 | F43: 41 | G43: صن سشيال | H43: عبد الرحمن | I43: 254 | J43: 30.75 | K43: 223.25 | L43: 23 | M43: 5134.75
E44: 2025-02-06 | F44: 25 | G44: فرتونا | H44: عبد الرحمن | I44: 150 | J44: 18.75 | K44: 131.25 | L44: 30 | M44: 3937.5
E45: 2025-02-06 | F45: 305 | G45: فستفال | H45: محمد شوقى | I45: 1849 | J45: 228.75 | K45: 1620.25 | L45: 32 | M45: 51848
E46: 2025-02-08 | F46: 355 | G46: فستفال | H46: المزرعة | I46: 1878 | J46: 266.25 | K46: 1611.75 | L46: 30 | M46: 48352.5
E47: 2025-02-08 | F47: 355 | G47: فستفال | H47: المزرعة | I47: 1928 | J47: 266.25 | K47: 1661.75 | L47: 30 | M47: 49852.5
E48: 2025-02-08 | F48: 355 | G48: فستفال | H48: المزرعة | I48: 1926 | J48: 266.25 | K48: 1659.75 | L48: 30 | M48: 49792.5
E49: 2025-02-08 | F49: 331 | G49: فستفال | H49: المزرعة | I49: 1585 | J49: 82.75 | K49: 1502.25 | L49: 30 | M49: 45067.5
E50: 2025-02-08 | F50: 499 | G50: فرتونا | H50: محمد شوقى | I50: 3022 | J50: 374.25 | K50: 2647.75 | L50: 28 | M50: 74137
E51: 2025-02-08 | F51: 99 | G51: فرتونا | H51: رضا جادو | I51: 624 | J51: 74.25 | K51: 549.75 | L51: 28 | M51: 15393
E52: 2025-02-08 | F52: 15 | G52: فرتونا | H52: رضا جادو | I52: 150 | J52: 15 | K52: 135 | L52: 28 | M52: 3780
E53: 2025-02-08 | F53: 115 | G53: فرتونا | H53: عبد الرحمن | I53: 683 | J53: 86.25 | K53: 596.75 | L53: 28 | M53: 16709
E54: 2025-02-08 | F54: 27 | G54: فرتونا | H54: عبد الرحمن | I54: 270 | J54: 27 | K54: 243 | L54: 28 | M54: 6804
E55: 2025-02-09 | F55: 810 | G55: فستفال | H55: المزرعة | I55: 4055 | J55: 607.5 | K55: 3447.5 | L55: 30 | M55: 103425
E56: 2025-02-09 | F56: 539 | G56: فستفال | H56: المزرعة | I56: 3155 | J56: 404.25 | K56: 2750.75 | L56: 30 | M56: 82522.5
E57: 2025-02-09 | F57: 330 | G57: فستفال | H57: المزرعة | I57: 1732 | J57: 247.5 | K57: 1484.5 | L57: 30 | M57: 44535
E58: 2025-02-09 | F58: 81 | G58: فستفال | H58: عبد الرحمن | I58: 495 | J58: 60.75 | K58: 434.25 | L58: 30 | M58: 13027.5
E59: 2025-02-09 | F59: 26 | G59: فرتونا | H59: رضا جادو | I59: 153 | J59: 19.5 | K59: 133.5 | L59: 28 | M59: 3738
E60: 2025-02-09 | F60: 62 | G60: فستفال | H60: رضا جادو | I60: 379 | J60: 46.5 | K60: 332.5 | L60: 30 | M60: 9975
E61: 2025-02-09 | F61: 297 | G61: فستفال | H61: محمد شوقى | I61: 1804 | J61: 222.75 | K61: 1581.25 | L61: 30 | M61: 47437.5
E62: 2025-02-09 | F62: 303 | G62: فرتونا | H62: محمد شوقى | I62: 1835 | J62: 227.25 | K62: 1607.75 | L62: 28 | M62: 45017
E63: 2025-02-10 | F63: 243 | G63: صن سشيال | H63: محمد شوقى | I63: 1562 | J63: 182.25 | K63: 1379.75 | L63: 20 | M63: 27595
E64: 2025-02-10 | F64: 53 | G64: صن سشيال | H64: محمد شوقى | I64: 530 | J64: 53 | K64: 477 | L64: 20 | M64: 9540
E65: 2025-02-10 | F65: 38 | G65: صن سشيال | H65: رضا جادو | I65: 380 | J65: 38 | K65: 342 | L65: 20 | M65: 6840
E66: 2025-02-10 | F66: 10 | G66: فرتونا | H66: رضا جادو | I66: 100 | J66: 10 | K66: 90 | L66: 28 | M66: 2520
E67: 2025-02-10 | F67: 21 | G67: صن سشيال | H67: عبد الرحمن | I67: 210 | J67: 21 | K67: 189 | L67: 20 | M67: 3780
E68: 2025-02-10 | F68: 12 | G68: فرتونا | H68: عبد الرحمن | I68: 120 | J68: 12 | K68: 108 | L68: 28 | M68: 3024
E69: 2025-02-10 | F69: 8 | G69: فستفال | H69: المزرعة | I69: 40 | J69: 6 | K69: 34 | L69: 30 | M69: 1020
E70: 2025-02-10 | F70: 436 | G70: فستفال | H70: المزرعة | I70: 3860 | J70: 436 | K70: 3424 | L70: 30 | M70: 102720
E71: 2025-02-10 | F71: 56 | G71: فستفال | H71: على خميس | I71: 560 | J71: 56 | K71: 504 | L71: 30 | M71: 15120
E72: 2025-02-10 | F72: 22 | G72: فرتونا | H72: على خميس | I72: 220 | J72: 22 | K72: 198 | L72: 28 | M72: 5544
E73: 2025-02-10 | F73: 864 | G73: فستفال | H73: المزرعة | I73: 4760 | J73: 648 | K73: 4112 | L73: 30 | M73: 123360
E74: 2025-02-10 | F74: 330 | G74: فستفال | H74: المزرعة | I74: 1845 | J74: 247.5 | K74: 1597.5 | L74: 30 | M74: 47925
E75: 2025-02-11 | F75: 169 | G75: فستفال | H75: محمد شوقى | I75: 1960 | J75: 169 | K75: 1791 | L75: 32 | M75: 57312
E76: 2025-02-11 | F76: 91 | G76: فستفال | H76: محمد شوقى | I76: 568 | J76: 68.25 | K76: 499.75 | L76: 32 | M76: 15992
E77: 2025-02-11 | F77: 864 | G77: فستفال | H77: المزرعة | I77: 4615 | J77: 648 | K77: 3967 | L77: 32 | M77: 126944
E78: 2025-02-11 | F78: 911 | G78: فستفال | H78: المزرعة | I78: 4895 | J78: 683.25 | K78: 4211.75 | L78: 32 | M78: 134776
E79: 2025-02-11 | F79: 43 | G79: صن سشيال | H79: على خميس | I79: 297 | J79: 32.25 | K79: 264.75 | L79: 23 | M79: 6089.25
E80: 2025-02-11 | F80: 59 | G80: فرتونا | H80: على خميس | I80: 357 | J80: 44.25 | K80: 312.75 | L80: 30 | M80: 9382.5
E81: 2025-02-12 | F81: 121 | G81: فرتونا | H81: عبد الرحمن | I81: 751 | J81: 90.75 | K81: 660.25 | L81: 30 | M81: 19807.5
E82: 2025-02-12 | F82: 171 | G82: فستفال | H82: المزرعة | I82: 171 | J82: 128.25 | K82: 42.75 | L82: 32 | M82: 1368
E83: 2025-02-12 | F83: 121 | G83: فرتونا | H83: عبد الرحمن | I83: 751 | J83: 90.75 | K83: 660.25 | L83: 30 | M83: 19807.5
E84: 2025-02-12 | F84: 171 | G84: فستفال | H84: المزرعة | I84: 171 | J84: 128.25 | K84: 42.75 | L84: 32 | M84: 1368
E85: 2025-02-12 | F85: 394 | G85: فرتونا | H85: محمد شوقى | I85: 2497 | J85: 295.5 | K85: 2201.5 | L85: 30 | M85: 66045
E86: 2025-02-12 | F86: 918 | G86: فستفال | H86: المزرعة | I86: 4830 | J86: 688.5 | K86: 4141.5 | L86: 32 | M86: 132528
E87: 2025-02-12 | F87: 100 | G87: فرتونا | H87: رضا جادو | I87: 627 | J87: 75 | K87: 552 | L87: 30 | M87: 16560
E88: 2025-02-12 | F88: 75 | G88: صن سشيال | H88: على خميس | I88: 525 | J88: 56.25 | K88: 468.75 | L88: 23 | M88: 10781.25
E89: 2025-02-12 | F89: 34 | G89: فرتونا | H89: على خميس | I89: 306 | J89: 34 | K89: 272 | L89: 30 | M89: 8160
E90: 2025-02-12 | F90: 40 | G90: فرتونا | H90: على خميس | I90: 240 | J90: 30 | K90: 210 | L90: 30 | M90: 6300
E91: 2025-02-12 | F91: 330 | G91: فستفال | H91: المزرعة | I91: 1790 | J91: 247.5 | K91: 1542.5 | L91: 32 | M91: 49360
E92: 2025-02-28 | F92: 0 | G92: الواصل | H92: على خميس | I92: 0 | N92: 50000
E93: 2025-02-28 | F93: 0 | G93: الواصل | H93: عبد الرحمن | I93: 0 | N93: 120000

Sheet المزرعة
B9: التاريخ | C9: العدد | D9: الصنف | E9: اسم المقاول | F9: القائم | G9: الفارغ | H9: الصافى | I9: السعر | J9: القيمة | K9: الواصل
A10: 1 | B10: 2025-02-02 | C10: 648 | D10: فستفال | E10: المزرعة | F10: 3560 | G10: 486 | H10: 3074 | I10: 32 | J10: 98368
A11: 2 | B11: 2025-02-02 | C11: 191 | D11: فستفال | E11: المزرعة | F11: 1039 | G11: 143.25 | H11: 895.75 | I11: 32 | J11: 28664
A12: 3 | B12: 2025-02-02 | C12: 330 | D12: فستفال | E12: المزرعة | F12: 1765 | G12: 247.5 | H12: 1517.5 | I12: 32 | J12: 48560
A13: 4 | B13: 2025-02-02 | C13: 767 | D13: فستفال | E13: المزرعة | F13: 4050 | G13: 575.25 | H13: 3474.75 | I13: 32 | J13: 111192
A14: 5 | B14: 2025-02-02 | C14: 235 | D14: فستفال | E14: المزرعة | F14: 1245 | G14: 176.25 | H14: 1068.75 | I14: 32 | J14: 34200
A15: 6 | B15: 2025-02-03 | C15: 330 | D15: فستفال | E15: المزرعة | F15: 1795 | G15: 247.5 | H15: 1547.5 | I15: 32 | J15: 49520
A16: 7 | B16: 2025-02-03 | C16: 525 | D16: فستفال | E16: المزرعة | F16: 2925 | G16: 393.75 | H16: 2531.25 | I16: 32 | J16: 81000
A17: 8 | B17: 2025-02-03 | C17: 339 | D17: فستفال | E17: المزرعة | F17: 1880 | G17: 254.25 | H17: 1625.75 | I17: 32 | J17: 52024
A18: 9 | B18: 2025-02-04 | C18: 330 | D18: فستفال | E18: المزرعة | F18: 1820 | G18: 247.5 | H18: 1572.5 | I18: 32 | J18: 50320
A19: 10 | B19: 2025-02-04 | C19: 756 | D19: فستفال | E19: المزرعة | F19: 4280 | G19: 567 | H19: 3713 | I19: 32 | J19: 118816
A20: 11 | B20: 2025-02-04 | C20: 268 | D20: فستفال | E20: المزرعة | F20: 1520 | G20: 201 | H20: 1319 | I20: 32 | J20: 42208
A21: 12 | B21: 2025-02-05 | C21: 330 | D21: فستفال | E21: المزرعة | F21: 1815 | G21: 247.5 | H21: 1567.5 | I21: 32 | J21: 50160
A22: 13 | B22: 2025-02-05 | C22: 864 | D22: فستفال | E22: المزرعة | F22: 4665 | G22: 648 | H22: 4017 | I22: 32 | J22: 128544
A23: 14 | B23: 2025-02-05 | C23: 427 | D23: فستفال | E23: المزرعة | F23: 2185 | G23: 320.25 | H23: 1864.75 | I23: 32 | J23: 59672
A24: 15 | B24: 2025-02-06 | C24: 330 | D24: فستفال | E24: المزرعة | F24: 1815 | G24: 247.5 | H24: 1567.5 | I24: 32 | J24: 50160
A25: 16 | B25: 2025-02-06 | C25: 733 | D25: فستفال | E25: المزرعة | F25: 3000 | G25: 549.75 | H25: 2450.25 | I25: 32 | J25: 78408
A26: 17 | B26: 2025-02-08 | C26: 355 | D26: فستفال | E26: المزرعة | F26: 1878 | G26: 266.25 | H26: 1611.75 | I26: 30 | J26: 48352.5
A27: 18 | B27: 2025-02-08 | C27: 355 | D27: فستفال | E27: المزرعة | F27: 1928 | G27: 266.25 | H27: 1661.75 | I27: 30 | J27: 49852.5
A28: 19 | B28: 2025-02-08 | C28: 355 | D28: فستفال | E28: المزرعة | F28: 1926 | G28: 266.25 | H28: 1659.75 | I28: 30 | J28: 49792.5
A29: 20 | B29: 2025-02-08 | C29: 331 | D29: فستفال | E29: المزرعة | F29: 1585 | G29: 82.75 | H29: 1502.25 | I29: 30 | J29: 45067.5
A30: 21 | B30: 2025-02-09 | C30: 810 | D30: فستفال | E30: المزرعة | F30: 4055 | G30: 607.5 | H30: 3447.5 | I30: 30 | J30: 103425
A31: 22 | B31: 2025-02-09 | C31: 539 | D31: فستفال | E31: المزرعة | F31: 3155 | G31: 404.25 | H31: 2750.75 | I31: 30 | J31: 82522.5
A32: 23 | B32: 2025-02-09 | C32: 330 | D32: فستفال | E32: المزرعة | F32: 1732 | G32: 247.5 | H32: 1484.5 | I32: 30 | J32: 44535
A33: 24 | B33: 2025-02-10 | C33: 8 | D33: فستفال | E33: المزرعة | F33: 40 | G33: 6 | H33: 34 | I33: 30 | J33: 1020
A34: 25 | B34: 2025-02-10 | C34: 436 | D34: فستفال | E34: المزرعة | F34: 3860 | G34: 436 | H34: 3424 | I34: 30 | J34: 102720
A35: 26 | B35: 2025-02-10 | C35: 864 | D35: فستفال | E35: المزرعة | F35: 4760 | G35: 648 | H35: 4112 | I35: 30 | J35: 123360
A36: 27 | B36: 2025-02-10 | C36: 330 | D36: فستفال | E36: المزرعة | F36: 1845 | G36: 247.5 | H36: 1597.5 | I36: 30 | J36: 47925
A37: 28 | B37: 2025-02-11 | C37: 864 | D37: فستفال | E37: المزرعة | F37: 4615 | G37: 648 | H37: 3967 | I37: 32 | J37: 126944
A38: 29 | B38: 2025-02-11 | C38: 911 | D38: فستفال | E38: المزرعة | F38: 4895 | G38: 683.25 | H38: 4211.75 | I38: 32 | J38: 134776
A39: 30 | B39: 2025-02-12 | C39: 171 | D39: فستفال | E39: المزرعة | F39: 171 | G39: 128.25 | H39: 42.75 | I39: 32 | J39: 1368
A40: 31 | B40: 2025-02-12 | C40: 171 | D40: فستفال | E40: المزرعة | F40: 171 | G40: 128.25 | H40: 42.75 | I40: 32 | J40: 1368
A41: 32 | B41: 2025-02-12 | C41: 918 | D41: فستفال | E41: المزرعة | F41: 4830 | G41: 688.5 | H41: 4141.5 | I41: 32 | J41: 132528
A42: 33 | B42: 2025-02-12 | C42: 330 | D42: فستفال | E42: المزرعة | F42: 1790 | G42: 247.5 | H42: 1542.5 | I42: 32 | J42: 49360

Sheet محمد شوقى
B9: التاريخ | C9: العدد | D9: الصنف | E9: اسم المقاول | F9: القائم | G9: الفارغ | H9: الصافى | I9: السعر | J9: القيمة | K9: الواصل
A10: 1 | B10: 2025-02-02 | C10: 289 | D10: فستفال | E10: محمد شوقى | F10: 1775 | G10: 216.75 | H10: 1558.25 | I10: 32 | J10: 49864
A11: 2 | B11: 2025-02-02 | C11: 232 | D11: صن سشيال | E11: محمد شوقى | F11: 1432 | G11: 174 | H11: 1258 | I11: 23 | J11: 28934
A12: 3 | B12: 2025-02-03 | C12: 398 | D12: فرتونا | E12: محمد شوقى | F12: 2354 | G12: 298.5 | H12: 2055.5 | I12: 30 | J12: 61665
A13: 4 | B13: 2025-02-04 | C13: 266 | D13: فستفال | E13: محمد شوقى | F13: 1618 | G13: 199.5 | H13: 1418.5 | I13: 32 | J13: 45392
A14: 5 | B14: 2025-02-05 | C14: 262 | D14: صن سشيال | E14: محمد شوقى | F14: 1635 | G14: 196.5 | H14: 1438.5 | I14: 23 | J14: 33085.5
A15: 6 | B15: 2025-02-06 | C15: 305 | D15: فستفال | E15: محمد شوقى | F15: 1849 | G15: 228.75 | H15: 1620.25 | I15: 32 | J15: 51848
A16: 7 | B16: 2025-02-08 | C16: 499 | D16: فرتونا | E16: محمد شوقى | F16: 3022 | G16: 374.25 | H16: 2647.75 | I16: 28 | J16: 74137
A17: 8 | B17: 2025-02-09 | C17: 297 | D17: فستفال | E17: محمد شوقى | F17: 1804 | G17: 222.75 | H17: 1581.25 | I17: 30 | J17: 47437.5
A18: 9 | B18: 2025-02-09 | C18: 303 | D18: فرتونا | E18: محمد شوقى | F18: 1835 | G18: 227.25 | H18: 1607.75 | I18: 28 | J18: 45017
A19: 10 | B19: 2025-02-10 | C19: 243 | D19: صن سشيال | E19: محمد شوقى | F19: 1562 | G19: 182.25 | H19: 1379.75 | I19: 20 | J19: 27595
A20: 11 | B20: 2025-02-10 | C20: 53 | D20: صن سشيال | E20: محمد شوقى | F20: 530 | G20: 53 | H20: 477 | I20: 20 | J20: 9540
A21: 12 | B21: 2025-02-11 | C21: 169 | D21: فستفال | E21: محمد شوقى | F21: 1960 | G21: 169 | H21: 1791 | I21: 32 | J21: 57312
A22: 13 | B22: 2025-02-11 | C22: 91 | D22: فستفال | E22: محمد شوقى | F22: 568 | G22: 68.25 | H22: 499.75 | I22: 32 | J22: 15992
A23: 14 | B23: 2025-02-12 | C23: 394 | D23: فرتونا | E23: محمد شوقى | F23: 2497 | G23: 295.5 | H23: 2201.5 | I23: 30 | J23: 66045

Sheet عبد الرحمن
B9: التاريخ | C9: العدد | D9: الصنف | E9: اسم المقاول | F9: القائم | G9: الفارغ | H9: الصافى | I9: السعر | J9: القيمة | K9: الواصل
A10: 1 | B10: 2025-02-02 | C10: 27 | D10: صن سشيال | E10: عبد الرحمن | F10: 166 | G10: 20.25 | H10: 145.75 | I10: 23 | J10: 3352.25
A11: 2 | B11: 2025-02-02 | C11: 16 | D11: فرتونا | E11: عبد الرحمن | F11: 99 | G11: 12 | H11: 87 | I11: 30 | J11: 2610
A12: 3 | B12: 2025-02-02 | C12: 86 | D12: فستفال | E12: عبد الرحمن | F12: 517 | G12: 64.5 | H12: 452.5 | I12: 32 | J12: 14480
A13: 4 | B13: 2025-02-03 | C13: 104 | D13: فرتونا | E13: عبد الرحمن | F13: 638 | G13: 78 | H13: 560 | I13: 30 | J13: 16800
A14: 5 | B14: 2025-02-04 | C14: 262 | D14: فرتونا | E14: عبد الرحمن | F14: 1629 | G14: 196.5 | H14: 1432.5 | I14: 30 | J14: 42975
A15: 6 | B15: 2025-02-05 | C15: 79 | D15: فستفال | E15: عبد الرحمن | F15: 474 | G15: 59.25 | H15: 414.75 | I15: 32 | J15: 13272
A16: 7 | B16: 2025-02-06 | C16: 41 | D16: صن سشيال | E16: عبد الرحمن | F16: 254 | G16: 30.75 | H16: 223.25 | I16: 23 | J16: 5134.75
A17: 8 | B17: 2025-02-06 | C17: 25 | D17: فرتونا | E17: عبد الرحمن | F17: 150 | G17: 18.75 | H17: 131.25 | I17: 30 | J17: 3937.5
A18: 9 | B18: 2025-02-08 | C18: 115 | D18: فرتونا | E18: عبد الرحمن | F18: 683 | G18: 86.25 | H18: 596.75 | I18: 28 | J18: 16709
A19: 10 | B19: 2025-02-08 | C19: 27 | D19: فرتونا | E19: عبد الرحمن | F19: 270 | G19: 27 | H19: 243 | I19: 28 | J19: 6804
A20: 11 | B20: 2025-02-09 | C20: 81 | D20: فستفال | E20: عبد الرحمن | F20: 495 | G20: 60.75 | H20: 434.25 | I20: 30 | J20: 13027.5
A21: 12 | B21: 2025-02-10 | C21: 21 | D21: صن سشيال | E21: عبد الرحمن | F21: 210 | G21: 21 | H21: 189 | I21: 20 | J21: 3780
A22: 13 | B22: 2025-02-10 | C22: 12 | D22: فرتونا | E22: عبد الرحمن | F22: 120 | G22: 12 | H22: 108 | I22: 28 | J22: 3024
A23: 14 | B23: 2025-02-12 | C23: 121 | D23: فرتونا | E23: عبد الرحمن | F23: 751 | G23: 90.75 | H23: 660.25 | I23: 30 | J23: 19807.5
A24: 15 | B24: 2025-02-12 | C24: 121 | D24: فرتونا | E24: عبد الرحمن | F24: 751 | G24: 90.75 | H24: 660.25 | I24: 30 | J24: 19807.5
A25: 16 | B25: 2025-02-28 | C25: 0 | D25: الواصل | E25: عبد الرحمن | F25: 0 | K25: 120000

Sheet رضا جادو
B9: التاريخ | C9: العدد | D9: الصنف | E9: اسم المقاول | F9: القائم | G9: الفارغ | H9: الصافى | I9: السعر | J9: القيمة | K9: الواصل
A10: 1 | B10: 2025-02-02 | C10: 56 | D10: صن سشيال | E10: رضا جادو | F10: 348 | G10: 42 | H10: 306 | I10: 23 | J10: 7038
A11: 2 | B11: 2025-02-02 | C11: 15 | D11: فرتونا | E11: رضا جادو | F11: 87 | G11: 11.25 | H11: 75.75 | I11: 30 | J11: 2272.5
A12: 3 | B12: 2025-02-02 | C12: 22 | D12: فرتونا | E12: رضا جادو | F12: 135 | G12: 16.5 | H12: 118.5 | I12: 30 | J12: 3555
A13: 4 | B13: 2025-02-02 | C13: 63 | D13: فستفال | E13: رضا جادو | F13: 383 | G13: 47.25 | H13: 335.75 | I13: 32 | J13: 10744
A14: 5 | B14: 2025-02-03 | C14: 84 | D14: فرتونا | E14: رضا جادو | F14: 523 | G14: 63 | H14: 460 | I14: 30 | J14: 13800
A15: 6 | B15: 2025-02-05 | C15: 25 | D15: فرتونا | E15: رضا جادو | F15: 159 | G15: 18.75 | H15: 140.25 | I15: 30 | J15: 4207.5
A16: 7 | B16: 2025-02-05 | C16: 59 | D16: فستفال | E16: رضا جادو | F16: 377 | G16: 44.25 | H16: 332.75 | I16: 32 | J16: 10648
A17: 8 | B17: 2025-02-06 | C17: 73 | D17: صن سشيال | E17: رضا جادو | F17: 475 | G17: 54.75 | H17: 420.25 | I17: 23 | J17: 9665.75
A18: 9 | B18: 2025-02-06 | C18: 19 | D18: فرتونا | E18: رضا جادو | F18: 119 | G18: 14.25 | H18: 104.75 | I18: 30 | J18: 3142.5
A19: 10 | B19: 2025-02-08 | C19: 99 | D19: فرتونا | E19: رضا جادو | F19: 624 | G19: 74.25 | H19: 549.75 | I19: 28 | J19: 15393
A20: 11 | B20: 2025-02-08 | C20: 15 | D20: فرتونا | E20: رضا جادو | F20: 150 | G20: 15 | H20: 135 | I20: 28 | J20: 3780
A21: 12 | B21: 2025-02-09 | C21: 26 | D21: فرتونا | E21: رضا جادو | F21: 153 | G21: 19.5 | H21: 133.5 | I21: 28 | J21: 3738
A22: 13 | B22: 2025-02-09 | C22: 62 | D22: فستفال | E22: رضا جادو | F22: 379 | G22: 46.5 | H22: 332.5 | I22: 30 | J22: 9975
A23: 14 | B23: 2025-02-10 | C23: 38 | D23: صن سشيال | E23: رضا جادو | F23: 380 | G23: 38 | H23: 342 | I23: 20 | J23: 6840
A24: 15 | B24: 2025-02-10 | C24: 10 | D24: فرتونا | E24: رضا جادو | F24: 100 | G24: 10 | H24: 90 | I24: 28 | J24: 2520
A25: 16 | B25: 2025-02-12 | C25: 100 | D25: فرتونا | E25: رضا جادو | F25: 627 | G25: 75 | H25: 552 | I25: 30 | J25: 16560

Sheet على خميس
B9: التاريخ | C9: العدد | D9: الصنف | E9: اسم المقاول | F9: القائم | G9: الفارغ | H9: الصافى | I9: السعر | J9: القيمة | K9: الواصل
A10: 1 | B10: 2025-02-10 | C10: 56 | D10: فستفال | E10: على خميس | F10: 560 | G10: 56 | H10: 504 | I10: 30 | J10: 15120
A11: 2 | B11: 2025-02-10 | C11: 22 | D11: فرتونا | E11: على خميس | F11: 220 | G11: 22 | H11: 198 | I11: 28 | J11: 5544
A12: 3 | B12: 2025-02-11 | C12: 43 | D12: صن سشيال | E12: على خميس | F12: 297 | G12: 32.25 | H12: 264.75 | I12: 23 | J12: 6089.25
A13: 4 | B13: 2025-02-11 | C13: 59 | D13: فرتونا | E13: على خميس | F13: 357 | G13: 44.25 | H13: 312.75 | I13: 30 | J13: 9382.5
A14: 5 | B14: 2025-02-12 | C14: 75 | D14: صن سشيال | E14: على خميس | F14: 525 | G14: 56.25 | H14: 468.75 | I14: 23 | J14: 10781.25
A15: 6 | B15: 2025-02-12 | C15: 34 | D15: فرتونا | E15: على خميس | F15: 306 | G15: 34 | H15: 272 | I15: 30 | J15: 8160
A16: 7 | B16: 2025-02-12 | C16: 40 | D16: فرتونا | E16: على خميس | F16: 240 | G16: 30 | H16: 210 | I16: 30 | J16: 6300
A17: 8 | B17: 2025-02-28 | C17: 0 | D17: الواصل | E17: على خميس | F17: 0 | K17: 50000
